No of Transactions,Dept_Family,Entity_Name,Cert Date,Supplier Name,Reference,Gross Amt,Group/Department,Type of Expenditure - Subjective Codes
1,DCMS,Historic England,12/10/2022,Bangor University,0040142926,"16,795.92",Policy & Evidence-National Specialist Services,IRO Research Grants
2,DCMS,Historic England,12/10/2022,Bangor University,0040142926,"14,791.68",Policy & Evidence-National Specialist Services,IRO Research Grants
3,DCMS,Historic England,11/10/2022,Between Time Ltd,0040143178,"-13,297.76",Corporate Services-Facilities Management,Repairs
4,DCMS,Historic England,07/10/2022,CDW UK,0040140983,"325,801.20",Corporate Services-IMT,IMT Equipment <10k
5,DCMS,Historic England,07/10/2022,CDW UK,0040141437,"-37,392.00",Corporate Services-IMT,IMT Equipment <10k
6,DCMS,Historic England,07/10/2022,CDW UK,0040141462,"-40,363.20",Corporate Services-IMT,IMT Equipment <10k
7,DCMS,Historic England,07/10/2022,CDW UK,0040143153,"-45,678.25",Corporate Services-IMT,IMT Equipment <10k
8,DCMS,Historic England,25/10/2022,Croft Building and Conservation Ltd,0040143369,"136,800.00",Shrewsbury Flax Mill Maltings-Shrewsbury Flax Mill Maltings,Works (Non Office)
9,DCMS,Historic England,25/10/2022,Croft Building and Conservation Ltd,0040143369,"109,200.00",Shrewsbury Flax Mill Maltings-Shrewsbury Flax Mill Maltings,Works (Non Office)
10,DCMS,Historic England,25/10/2022,Croft Building and Conservation Ltd,0040143371,"80,712.00",Shrewsbury Flax Mill Maltings-Shrewsbury Flax Mill Maltings,Works (Non Office)
11,DCMS,Historic England,28/10/2022,Dudley Metropolitan Borough Council,0083001824,"78,520.00",Regions Group-High Str (HAZ) - Regions,Grants Area
12,DCMS,Historic England,28/10/2022,EDF  ,0030000830,"34,180.19",Corporate Services-Facilities Management,Electricity
13,DCMS,Historic England,11/10/2022,Friends of Flaxmill Maltings,0090516459,"33,245.56",Shrewsbury Flax Mill Maltings-Shrewsbury Flax Mill Maltings,Grants Capacity Building Grants
14,DCMS,Historic England,03/10/2022,Government Internal Audit Agency,0040142910,"51,841.50",Governance & Legal-Internal Audit,Bought in Advice
15,DCMS,Historic England,05/10/2022,GTT-EMA Ltd,0040142773,"45,216.72",Corporate Services-IMT,Network Contracts
16,DCMS,Historic England,05/10/2022,GTT-EMA Ltd,0040142773,711.62,Corporate Services-IMT,Network Contracts
17,DCMS,Historic England,17/10/2022,GTT-EMA Ltd,0040143185,"45,216.72",Corporate Services-IMT,Network Contracts
18,DCMS,Historic England,17/10/2022,GTT-EMA Ltd,0040143185,688.93,Corporate Services-IMT,Network Contracts
20,DCMS,Historic England,28/10/2022,Kettering Borough Council,0083001825,"84,524.00",Regions Group-High Str (HAZ) - Regions,Grants Area
21,DCMS,Historic England,10/10/2022,Kingston upon Hull City Council,0090516456,"49,120.00",Regions Group-North East & Yorkshire - RD,Grants Area
22,DCMS,Historic England,20/10/2022,Kingston upon Hull City Council,0090516462,"98,132.00",Regions Group-North East & Yorkshire - RD,Grants Area
23,DCMS,Historic England,04/10/2022,Kirklees Council,0090516455,"26,943.00",Regions Group-North East & Yorkshire - RD,Grants Area
24,DCMS,Historic England,03/10/2022,Lincolnshire County Council,0081006231,"27,975.17",Business Improvement-Grants,Grants Historic Environment
25,DCMS,Historic England,27/10/2022,Mather & Co Ltd,0040143254,"6,006.82",Shrewsbury Flax Mill Maltings-Shrewsbury Flax Mill Maltings,Bought in Advice
26,DCMS,Historic England,27/10/2022,Mather & Co Ltd,0040143254,"2,891.89",Shrewsbury Flax Mill Maltings-Shrewsbury Flax Mill Maltings,Bought in Advice
27,DCMS,Historic England,27/10/2022,Mather & Co Ltd,0040143254,"47,091.83",Shrewsbury Flax Mill Maltings-Shrewsbury Flax Mill Maltings,Bought in Advice
28,DCMS,Historic England,10/10/2022,Microsoft Ltd,0040142829,"31,796.10",Corporate Services-IMT,IT Licences <10k
29,DCMS,Historic England,04/10/2022,SoftwareOne UK Ltd,0040143045,"71,737.14",Corporate Services-IMT,Hosting
30,DCMS,Historic England,28/10/2022,Stoke on Trent City Council,0083001823,"193,347.00",Regions Group-High Str (HAZ) - Regions,Grants Area
31,DCMS,Historic England,05/10/2022,The Ordnance Depot Ltd,0082006217,"60,479.00",Regions Group-Midlands - RD,Grants Historic Buildings
32,DCMS,Historic England,14/10/2022,Tolpuddle Old Chapel Trust,0082006221,"48,000.00",Regions Group-South West - RD,Grants Historic Buildings
33,DCMS,Historic England,19/10/2022,Wentworth Woodhouse Preservation Trust,0082006223,"62,500.00",Regions Group-North East & Yorkshire - RD,Grants Historic Buildings
34,DCMS,Historic England,18/10/2022,XMA Limited,0040142574,"46,800.00",Corporate Services-IMT,Bought in Advice
35,DCMS,Historic England,18/10/2022,XMA Limited,0040142592,"94,380.00",Corporate Services-IMT,Bought in Advice
36,DCMS,Historic England,12/10/2022,XMA Limited,0040143124,"89,632.90",Corporate Services-IMT,End User Contracts
37,DCMS,Historic England,19/10/2022,XMA Limited,0040143150,360.00,Corporate Services-IMT,Bought in Advice
38,DCMS,Historic England,19/10/2022,XMA Limited,0040143150,"34,920.00",Corporate Services-IMT,Bought in Advice
39,DCMS,Historic England,19/10/2022,XMA Limited,0040143150,"51,600.00",Corporate Services-IMT,Bought in Advice
40,DCMS,Historic England,12/10/2022,XMA Limited,0040143238,"25,791.32",Corporate Services-IMT,Equipment & Furniture <10k
